bitfinex-derivatives/quotes_BTCF0:USTF0_20241015
["timestamp","ask_amount","ask_price","bid_price","bid_amount"]
[1729006723042,0.3608,66113.0,66100.0,0.00136]
[1729006723043,0.3612,66105.0,66100.0,0.00136]
[1729006723240,0.0004,66101.0,66100.0,0.075661]
[1729006723445,0.075662,66100.0,66097.0,0.075665]
[1729006723750,0.0004,66098.0,66094.0,0.3608]
[1729006724042,0.0004,66098.0,66097.0,0.075665]
[1729006724244,0.0004,66098.0,66095.0,0.0022695]
[1729006724543,0.0004,66098.0,66097.0,0.075665]
[1729006725032,0.3612,66098.0,66097.0,0.075665]
[1729006725537,0.3612,66098.0,66095.0,0.0022695]
[1729006725538,0.075666,66096.0,66095.0,0.0022695]
[1729006725740,0.436466,66096.0,66095.0,0.0022695]
[1729006725934,0.436866,66096.0,66095.0,0.0022695]
[1729006726345,0.3612,66096.0,66095.0,0.0022695]
[1729006726738,0.436866,66096.0,66095.0,0.0022695]
[1729006726934,0.3612,66096.0,66095.0,0.0022695]
[1729006727648,0.436866,66096.0,66095.0,0.0022695]
[1729006727852,0.436866,66096.0,66090.0,0.075673]
[1729006728155,0.436866,66096.0,66083.0,0.44227047]
[1729006728156,0.0004,66091.0,66085.0,0.075678]
[1729006728339,0.0004,66086.0,66084.0,0.07568]
[1729006728539,0.0004,66086.0,66085.0,0.075679]
[1729006729137,0.0004,66086.0,66076.0,0.13014379]
[1729006729138,0.81516,66086.0,66076.0,0.12319431]
[1729006729337,0.436488,66077.0,66076.0,0.12319431]
[1729006729840,0.3612,66077.0,66076.0,0.12319431]
[1729006730044,0.3612,66077.0,66076.0,0.19888331]
[1729006730345,0.0004,66077.0,66076.0,0.19888331]
[1729006731837,0.0004,66077.0,66076.0,0.18478331]
[1729006732154,0.0004,66077.0,66076.0,0.63878331]
[1729006732451,0.0004,66086.0,66085.0,0.075679]
[1729006732649,0.0004,66086.0,66085.0,0.516079]
[1729006732846,0.0004,66091.0,66085.0,0.4404]
[1729006733058,0.0004,66091.0,66090.0,0.515673]
[1729006733246,0.0004,66091.0,66090.0,0.516073]
[1729006734646,0.0004,66091.0,66090.0,0.969993]
[1729006735348,0.0004,66091.0,66090.0,0.516073]
[1729006735846,0.0004,66098.0,66090.0,0.819993]
[1729006736051,0.0004,66098.0,66095.0,0.366067]
[1729006738059,0.0004,66098.0,66095.0,0.076067]
[1729006739553,0.0004,66098.0,66095.0,0.366067]
[1729006740244,0.076066,66096.0,66095.0,0.0004]
[1729006740449,0.366066,66096.0,66095.0,0.0004]
[1729006740848,0.819946,66096.0,66095.0,0.0004]
[1729006741046,0.819946,66096.0,66090.0,0.0004]
[1729006741047,0.075672,66091.0,66090.0,0.0004]
[1729006741243,0.890792,66091.0,66090.0,0.0004]
[1729006741447,0.436872,66091.0,66090.0,0.0004]
[1729006742258,1.180792,66091.0,66090.0,0.0004]
[1729006743270,0.075677,66086.0,66077.0,0.075687]
[1729006743473,0.075688,66077.0,66076.0,0.00226943]
[1729006743659,0.436888,66077.0,66076.0,0.00226943]
[1729006744260,0.726888,66077.0,66076.0,0.00226943]
[1729006744470,1.1052,66077.0,66064.0,0.00013084]
[1729006744772,0.2904,66065.0,66048.0,0.6954008]
[1729006744968,0.3608,66058.0,66057.0,0.075711]
[1729006745169,0.3608,66058.0,66048.0,0.29]
[1729006745371,0.0004,66049.0,66048.0,0.29]
[1729006745668,0.0004,66049.0,66048.0,0.075721]
[1729006745873,0.3608,66058.0,66057.0,0.075711]
[1729006746060,0.0004,66065.0,66064.0,0.075703]
[1729006746258,0.0004,66065.0,66064.0,0.076103]
[1729006747175,0.071102,66065.0,66064.0,0.0004]
[1729006748165,0.431902,66065.0,66064.0,0.0004]
[1729006748569,0.3608,66065.0,66064.0,0.076103]
[1729006748768,0.3608,66076.0,66064.0,0.0004]
[1729006749079,0.436489,66076.0,66075.0,0.0004]
[1729006749275,0.3608,66076.0,66075.0,0.0004]
[1729006749482,0.44352086,66076.0,66075.0,0.0004]
[1729006750062,0.89756086,66076.0,66064.0,0.0004]
[1729006750278,0.076102,66065.0,66064.0,0.0004]
[1729006750674,0.654422,66065.0,66064.0,0.0004]
[1729006751176,0.654422,66065.0,66057.0,0.0004]
[1729006751381,0.79771,66058.0,66057.0,0.0004]
[1729006751571,0.722,66058.0,66042.0,0.0446008]
[1729006751772,0.3608,66043.0,66042.0,0.075728]
[1729006751972,0.3608,66043.0,66038.0,0.00227098]
[1729006751973,0.0004,66043.0,66038.0,0.00227098]
[1729006752179,0.0004,66039.0,66038.0,0.00227098]
[1729006752474,0.076131,66039.0,66038.0,0.00227098]
[1729006752879,0.0004,66039.0,66032.0,0.365739]
[1729006753070,0.3612,66033.0,66024.0,0.0446008]
[1729006753272,0.2904,66025.0,66022.0,0.0446008]
[1729006753474,0.075758,66016.0,66015.0,0.0022715]
[1729006753672,0.436558,66016.0,66015.0,0.0022715]
[1729006753877,0.3608,66016.0,66015.0,0.3680305]
[1729006754075,0.3612,66016.0,66015.0,0.2922715]
[1729006754282,0.075761,66013.0,66007.0,0.0459608]
[1729006754486,0.3612,66016.0,66010.0,0.29]
[1729006754784,0.36812089,66016.0,66015.0,0.366159]
[1729006755486,0.36812089,66016.0,66015.0,0.076159]
[1729006755687,0.36812089,66016.0,66015.0,0.366159]
[1729006755688,0.00732089,66016.0,66015.0,0.366159]
[1729006755981,0.0004,66016.0,66015.0,0.516159]
[1729006756578,0.0004,66016.0,66015.0,0.970599]
[1729006756783,0.0004,66023.0,66022.0,0.515751]
[1729006757084,0.0004,66023.0,66022.0,0.516151]
[1729006757285,0.0004,66023.0,66022.0,0.076151]
[1729006757481,0.0004,66023.0,66022.0,0.516151]
[1729006758574,0.0004,66023.0,66022.0,0.076151]
[1729006758774,0.07615,66023.0,66022.0,0.076151]
[1729006758975,0.07615,66023.0,66022.0,0.0004]
[1729006759171,0.43695,66023.0,66022.0,0.0004]
[1729006759578,0.3612,66023.0,66022.0,0.075951]
[1729006760085,0.0004,66023.0,66022.0,0.075951]
[1729006760582,0.89838513,66023.0,66022.0,0.0002]
[1729006760888,0.44398513,66023.0,66022.0,0.0002]
[1729006761278,0.89838513,66023.0,66022.0,0.0002]
[1729006761673,0.44398513,66023.0,66022.0,0.0002]
[1729006762680,0.89838513,66023.0,66022.0,0.0002]
[1729006762886,0.36823513,66023.0,66022.0,0.075951]
[1729006763883,0.44398513,66023.0,66022.0,0.0002]
[1729006765491,0.89838513,66023.0,66022.0,0.0002]
[1729006766891,0.530151,66022.0,65992.0,0.00227344]
[1729006767079,0.530151,66022.0,66002.0,0.075774]
[1729006767080,0.3608,66003.0,66002.0,0.075774]
[1729006767280,0.3608,66011.0,65997.0,0.3608]
[1729006767476,0.3608,66011.0,66010.0,0.075765]
[1729006767688,0.3608,66011.0,66010.0,0.076165]
[1729006767990,0.0004,66016.0,66015.0,0.075759]
[1729006768291,0.0004,66016.0,66015.0,0.076159]
[1729006770295,0.891398,66016.0,66015.0,0.0004]
[1729006770587,0.3612,66016.0,66015.0,0.0004]
[1729006770784,0.36115802,66016.0,66015.0,0.076159]
[1729006770991,0.36115802,66016.0,66015.0,0.0004]
[1729006771586,0.43691602,66016.0,66015.0,0.0004]
[1729006771789,0.89135602,66016.0,66015.0,0.0004]
[1729006772986,0.43691602,66016.0,66015.0,0.0004]
[1729006774385,0.075763,66011.0,66010.0,0.0004]
[1729006774587,0.436963,66011.0,66010.0,0.0004]
[1729006774783,0.81568,66011.0,65989.0,0.4915]
[1729006775085,0.076184,65993.0,65985.0,0.3608]
[1729006775288,0.076184,65993.0,65984.0,0.00714393]
[1729006775289,0.0004,65993.0,65984.0,0.00714393]
[1729006775492,0.0004,65993.0,65992.0,0.12030316]
[1729006776080,0.0004,65993.0,65992.0,0.04451816]
[1729006776281,0.3612,65993.0,65984.0,0.3608]
[1729006776479,0.0004,65985.0,65984.0,0.436594]
[1729006776685,0.0004,65993.0,65992.0,0.075785]
[1729006776990,0.0004,65993.0,65992.0,0.076185]
[1729006777699,0.00735959,65993.0,65992.0,0.076185]
[1729006777997,0.0004,65993.0,65992.0,0.076185]
[1729006779792,0.0004,65993.0,65992.0,0.12103217]
[1729006779997,0.0004,65993.0,65992.0,0.076185]
[1729006780289,0.3608,66000.0,65999.0,0.075777]
[1729006780488,0.3608,66000.0,65999.0,0.13603689]
[1729006780690,0.436576,66000.0,65999.0,0.0004]
[1729006780889,0.3608,66000.0,65999.0,0.076177]
[1729006781484,0.3608,66000.0,65999.0,0.12108054]
[1729006781683,0.3608,66000.0,65999.0,0.076177]
[1729006782081,0.0004,66011.0,66010.0,0.075765]
[1729006782286,0.0004,66011.0,66010.0,0.076165]
[1729006782892,0.076163,66011.0,66010.0,0.076165]
[1729006783084,0.0004,66011.0,66010.0,0.076165]
[1729006784207,0.0004,66011.0,66010.0,0.530645]
[1729006784997,0.3608,66021.0,66010.0,0.530645]
[1729006784998,0.3608,66031.0,66022.0,0.075751]
[1729006785190,0.07615,66023.0,66022.0,0.075751]
[1729006785390,0.07615,66023.0,66022.0,0.076151]
[1729006785788,0.0004,66023.0,66022.0,0.076151]
[1729006785994,0.0004,66023.0,66022.0,0.0004]
[1729006786190,0.07615,66023.0,66022.0,0.0004]
[1729006787205,0.0004,66023.0,66022.0,0.076151]
[1729006787999,0.0004,66033.0,66024.0,0.075749]
[1729006788198,0.0004,66033.0,66032.0,0.075739]
[1729006788386,0.0004,66043.0,66038.0,0.075733]
[1729006788794,0.0004,66043.0,66038.0,0.530413]
[1729006788994,0.0004,66043.0,66038.0,0.076133]
[1729006789197,0.0004,66043.0,66038.0,0.530413]
[1729006789397,0.0004,66043.0,66038.0,0.891213]
[1729006789695,1e-06,66039.0,66038.0,1.11763525]
[1729006789901,1e-06,66039.0,66038.0,1.21085304]
[1729006790291,1e-06,66039.0,66038.0,1.28535236]
[1729006790492,0.3608,66059.0,66057.0,0.075711]
[1729006790693,0.07651,66058.0,66057.0,0.076111]
[1729006790898,0.0008,66058.0,66057.0,0.076111]
[1729006791490,0.07651,66058.0,66057.0,0.0004]
[1729006792494,0.21261,66058.0,66057.0,0.0004]
[1729006793501,0.0008,66058.0,66057.0,0.0004]
[1729006793800,0.0008,66058.0,66057.0,0.076111]
[1729006794597,0.0008,66058.0,66057.0,0.530271]
[1729006794996,0.0008,66058.0,66057.0,0.076111]
[1729006797109,0.07651,66058.0,66057.0,0.0004]
[1729006797406,0.43731,66058.0,66057.0,0.0004]
[1729006798811,0.075724,66045.0,66044.0,0.075725]
[1729006799110,0.436524,66045.0,66044.0,0.075725]
[1729006799296,0.436924,66045.0,66044.0,0.075725]
[1729006799501,0.0004,66045.0,66044.0,0.075725]
[1729006800408,0.436924,66045.0,66044.0,0.075725]
[1729006801204,0.44375369,66045.0,66044.0,0.075725]
[1729006801711,0.0004,66045.0,66044.0,0.075725]
[1729006801911,0.0004,66045.0,66043.0,0.00227136]
[1729006801912,0.075726,66044.0,66043.0,0.00227136]
[1729006802102,0.076126,66044.0,66043.0,0.00227136]
[1729006802301,0.075727,66043.0,66042.0,0.0004]
[1729006802513,0.3612,66043.0,66032.0,0.0008]
[1729006802713,0.076131,66039.0,66033.0,0.075737]
[1729006802909,0.076131,66039.0,66034.0,0.075737]
[1729006803214,0.076131,66039.0,66032.0,0.0008]
[1729006803602,0.45468,66039.0,66029.0,0.0004]
[1729006803798,0.45468,66039.0,66014.0,0.36091051]
[1729006803799,0.3612,66030.0,66014.0,0.36091051]
[1729006804219,0.076147,66025.0,66020.0,0.075753]
[1729006804399,0.076147,66025.0,66014.0,0.36091051]
[1729006804400,0.076147,66025.0,66024.0,0.076149]
[1729006804801,0.0004,66025.0,66024.0,0.076149]
[1729006805307,0.0004,66039.0,66024.0,0.076149]
[1729006805308,0.0004,66039.0,66038.0,0.075733]
[1729006805705,0.0004,66039.0,66038.0,0.076133]
[1729006805903,0.3608,66054.0,66044.0,0.075725]
[1729006806114,0.3608,66070.0,66057.0,0.075711]
[1729006806315,0.075708,66059.0,66057.0,0.075711]
[1729006806508,0.075708,66059.0,66057.0,0.076111]
[1729006806706,0.00698833,66060.0,66057.0,0.076111]
[1729006807015,0.1319,66074.0,66064.0,0.075703]
[1729006807016,0.3608,66070.0,66064.0,0.075703]
[1729006807407,0.00694973,66068.0,66064.0,0.076103]
[1729006807800,0.3608,66070.0,66064.0,0.076103]
[1729006810709,0.3608,66083.0,66064.0,0.68041109]
[1729006811018,0.3608,66083.0,66076.0,0.076089]
[1729006812415,0.00227014,66087.0,66076.0,0.530089]
[1729006812609,0.00227014,66087.0,66085.0,0.075679]
[1729006812809,0.00227014,66087.0,66085.0,0.076079]
[1729006813204,0.00687977,66089.0,66085.0,0.530039]
[1729006813403,0.0004,66096.0,66085.0,0.436879]
[1729006813604,0.0004,66096.0,66095.0,0.075667]
[1729006813812,0.0004,66096.0,66095.0,0.076067]
[1729006814025,0.0004,66096.0,66095.0,0.75718726]
[1729006814209,0.0004,66096.0,66095.0,0.076067]
[1729006814524,0.0004,66096.0,66095.0,0.529947]
[1729006814824,0.3608,66109.0,66104.0,0.075657]
[1729006815013,0.3608,66116.0,66113.0,0.075647]
[1729006815214,0.3608,66116.0,66113.0,0.0004]
[1729006815515,0.076045,66114.0,66113.0,0.0004]
[1729006816519,0.0004,66114.0,66113.0,0.0004]
[1729006816916,0.076045,66114.0,66113.0,0.0004]
[1729006817424,0.0004,66114.0,66113.0,0.076047]
[1729006818823,0.076045,66114.0,66113.0,0.0004]
[1729006819021,0.076045,66114.0,66104.0,0.0008]
[1729006819022,0.075656,66105.0,66104.0,0.0008]
[1729006819314,0.436856,66105.0,66104.0,0.0008]
[1729006819714,0.076056,66105.0,66104.0,0.0008]
[1729006819912,0.436856,66105.0,66104.0,0.0008]
[1729006820306,0.07566,66101.0,66090.0,0.0004]
[1729006820510,0.075672,66091.0,66090.0,0.0004]
[1729006820714,0.436872,66091.0,66090.0,0.0004]
[1729006822619,0.0004,66091.0,66090.0,0.0004]
[1729006822813,0.0004,66091.0,66090.0,0.076073]
[1729006824119,0.076072,66091.0,66090.0,0.076073]
[1729006824620,0.0004,66091.0,66090.0,0.076073]
[1729006825118,0.0004,66091.0,66090.0,0.0004]
[1729006825119,0.436872,66091.0,66090.0,0.0004]
[1729006825319,0.436872,66091.0,66071.0,0.3608]
[1729006825522,0.076077,66086.0,66077.0,0.075688]
[1729006826219,0.076077,66086.0,66071.0,0.3608]
[1729006826426,0.0004,66086.0,66085.0,0.530439]
[1729006826615,0.00116,66091.0,66090.0,0.075673]
[1729006826810,0.00116,66091.0,66090.0,0.076073]
[1729006826811,0.0004,66091.0,66090.0,0.076073]
[1729006827021,0.3612,66105.0,66090.0,0.76386846]
[1729006827212,0.0004,66105.0,66097.0,0.0004]
[1729006827527,0.00226988,66112.0,66097.0,0.22696573]
[1729006827826,0.00226988,66112.0,66111.0,0.076049]
[1729006828323,0.075648,66112.0,66111.0,0.0004]
[1729006829217,0.075648,66112.0,66104.0,0.0004]
[1729006829218,0.075656,66105.0,66104.0,0.0004]
[1729006829523,0.076056,66105.0,66104.0,0.076057]
[1729006829718,0.076056,66105.0,66104.0,0.0004]
[1729006829919,0.076056,66105.0,66104.0,0.076049]
[1729006830122,0.076056,66105.0,66104.0,0.0004]
[1729006830328,0.436856,66105.0,66104.0,0.0004]
[1729006830926,0.00723556,66105.0,66104.0,0.0004]
[1729006831123,0.08288356,66105.0,66104.0,0.0004]
[1729006832029,0.00723556,66105.0,66104.0,0.076049]
[1729006832328,0.0004,66112.0,66104.0,1.95424]
[1729006832515,0.3608,66136.0,66109.0,0.3608]
[1729006832722,0.075628,66124.0,66123.0,0.075627]
[1729006832929,0.36782343,66136.0,66126.0,0.075624]
[1729006833232,0.075624,66127.0,66125.0,0.075625]
[1729006833424,0.0004,66126.0,66118.0,0.3608]
[1729006833725,0.3608,66136.0,66125.0,0.436425]
[1729006834035,0.00142278,66138.0,66137.0,0.075611]
[1729006834419,0.00142278,66138.0,66137.0,0.0004]
[1729006834726,0.07703278,66138.0,66137.0,0.0004]
[1729006835816,0.00142278,66138.0,66137.0,0.076011]
[1729006836920,0.07703278,66138.0,66137.0,0.0004]
[1729006837323,0.00699475,66143.0,66137.0,0.0004]
[1729006837625,0.3608,66145.0,66142.0,0.0004]
[1729006837933,0.075605,66143.0,66142.0,0.0004]
[1729006838630,0.436405,66143.0,66137.0,0.0004]
[1729006838825,0.07561,66138.0,66137.0,0.0004]
[1729006839022,0.07601,66138.0,66137.0,0.0004]
[1729006839222,0.0004,66138.0,66137.0,0.529611]
[1729006839529,0.0004,66138.0,66137.0,0.890411]
[1729006839733,0.0004,66138.0,66137.0,0.076011]
[1729006840024,0.0004,66138.0,66137.0,0.0004]
[1729006840025,0.07601,66138.0,66137.0,0.0004]
[1729006840822,0.0004,66138.0,66137.0,0.076011]
[1729006841631,0.00756395,66138.0,66137.0,0.076011]
[1729006842029,0.0004,66138.0,66137.0,0.076011]
[1729006844325,0.0004,66138.0,66137.0,0.75645195]
[1729006844530,0.0004,66143.0,66142.0,0.075606]
[1729006844730,0.3608,66165.0,66142.0,0.436806]
[1729006844926,0.3608,66165.0,66151.0,0.3608]
[1729006845122,0.075594,66152.0,66151.0,0.3608]
[1729006845326,0.075594,66152.0,66151.0,1.8608]
[1729006845755,0.075594,66152.0,66151.0,0.3608]
[1729006845958,0.36773354,66165.0,66151.0,0.3608]
[1729006846164,0.3608,66165.0,66151.0,0.3608]
[1729006846360,0.00226772,66171.0,66151.0,0.3608]
[1729006846361,0.00226772,66171.0,66157.0,0.3608]
[1729006846663,0.00226772,66171.0,66170.0,0.0004]
[1729006846859,0.0847505,66171.0,66170.0,0.0004]
[1729006847151,0.07784072,66171.0,66170.0,0.0004]
[1729006847548,0.00226772,66171.0,66170.0,0.0004]
[1729006847758,0.00226772,66171.0,66170.0,0.436774]
[1729006848051,0.3608,66181.0,66170.0,0.3612]
[1729006848052,0.075568,66176.0,66170.0,0.3612]
[1729006848258,0.0022672,66185.0,66175.0,0.0004]
[1729006848444,0.075565,66179.0,66178.0,0.075564]
[1729006848753,0.00939871,66185.0,66177.0,0.3608]
[1729006848965,0.0022672,66185.0,66184.0,0.075558]
[1729006849158,0.0778242,66185.0,66184.0,0.075558]
[1729006849375,0.0778242,66185.0,66184.0,0.075958]
[1729006849856,0.0022672,66185.0,66184.0,0.075958]
[1729006850242,0.0122672,66185.0,66184.0,0.075958]
[1729006850545,0.01,66185.0,66184.0,0.075958]
[1729006850852,0.00226625,66200.0,66199.0,0.075541]
[1729006851149,0.3608,66213.0,66207.0,0.075532]
[1729006851355,0.36773729,66213.0,66202.0,0.00755779]
[1729006851545,0.075529,66209.0,66208.0,0.3608]
[1729006852445,0.001,66213.0,66208.0,0.43633]
[1729006852742,0.076525,66213.0,66212.0,0.0004]
[1729006852924,0.001,66213.0,66212.0,0.0004]
[1729006853131,0.001,66213.0,66212.0,0.075926]
[1729006853947,0.075525,66213.0,66212.0,0.0004]
[1729006854431,0.075525,66213.0,66208.0,0.3628]
[1729006854432,0.075529,66209.0,66208.0,0.002]
[1729006854739,0.436729,66209.0,66208.0,0.002]
[1729006854928,0.436729,66209.0,66200.0,0.075539]
[1729006854929,0.3612,66209.0,66200.0,0.075539]
[1729006855144,0.0004,66201.0,66199.0,0.0004]
[1729006855536,0.0004,66200.0,66199.0,0.075941]
[1729006855836,0.07594,66200.0,66199.0,0.075941]
[1729006856028,0.07594,66200.0,66199.0,0.0004]
[1729006856433,0.07594,66200.0,66199.0,0.0014]
[1729006857034,0.08094,66200.0,66199.0,0.0014]
[1729006857740,0.09394,66200.0,66199.0,0.0024]
[1729006858439,0.0184,66200.0,66199.0,0.077941]
[1729006858735,0.09394,66200.0,66199.0,0.077941]
[1729006858942,0.08894,66200.0,66199.0,0.0014]
[1729006859133,0.10081166,66200.0,66199.0,0.0024]
[1729006860230,0.10081166,66200.0,66185.0,0.00226638]
[1729006860231,0.55397166,66200.0,66185.0,0.00226638]
[1729006860426,0.0004,66186.0,66185.0,0.00226638]
[1729006860634,0.0004,66186.0,66185.0,0.07782338]
[1729006861332,0.0004,66186.0,66185.0,0.53110338]
[1729006861534,0.0138,66200.0,66199.0,0.075541]
[1729006861832,0.0018,66200.0,66199.0,0.075941]
[1729006862032,0.0018,66200.0,66199.0,0.08337184]
[1729006862939,0.004401,66200.0,66199.0,0.09143]
[1729006864037,0.0004,66201.0,66199.0,0.09143]
[1729006864038,0.0004,66201.0,66199.0,0.7726295]
[1729006864245,0.0004,66213.0,66208.0,0.07553]
[1729006864447,0.114,66239.0,66213.0,0.075524]
[1729006864448,0.075503,66232.0,66213.0,0.075524]
[1729006864637,0.3608,66241.0,66234.0,0.0755]
[1729006864831,0.00226544,66245.0,66214.0,1.5]
[1729006864832,0.00226544,66245.0,66241.0,0.075493]
[1729006865043,0.075489,66245.0,66244.0,0.0004]
[1729006866146,0.076489,66245.0,66244.0,0.0004]
[1729006866343,0.076488,66245.0,66244.0,0.0004]
[1729006867150,0.076488,66245.0,66244.0,0.075889]
[1729006867151,0.002,66245.0,66244.0,0.075889]
[1729006867540,0.00226445,66259.0,66244.0,0.75449601]
[1729006867843,0.00226445,66259.0,66258.0,0.075873]
[1729006868637,0.07773645,66259.0,66258.0,0.0004]
[1729006868846,0.07773645,66259.0,66244.0,0.00921903]
[1729006868847,0.075488,66245.0,66244.0,0.0024]
[1729006869034,0.075488,66245.0,66244.0,0.0014]
[1729006869238,0.075888,66245.0,66244.0,0.0014]
[1729006869446,0.075493,66241.0,66227.0,0.075508]
[1729006869646,0.075503,66232.0,66227.0,0.00739123]
[1729006869838,0.436703,66232.0,66226.0,0.075509]
[1729006870035,0.436703,66232.0,66223.0,0.3608]
[1729006871144,0.436703,66232.0,66220.0,0.075516]
[1729006871447,0.436703,66232.0,66215.0,0.075522]
[1729006871448,0.075517,66221.0,66215.0,0.075522]
[1729006871656,0.1177,66231.0,66212.0,0.3608]
[1729006871947,0.0004,66216.0,66208.0,0.00054169]
[1729006872147,0.0004,66216.0,66210.0,0.075528]
[1729006872350,0.075525,66213.0,66210.0,0.075528]
[1729006872536,0.075528,66210.0,66208.0,0.00054169]
[1729006872849,0.0004,66210.0,66208.0,0.0004]
[1729006873037,0.0004,66210.0,66208.0,0.3612]
[1729006873237,0.075928,66210.0,66208.0,0.0004]
[1729006874241,0.0004,66210.0,66208.0,0.0004]
[1729006874548,0.0004,66210.0,66209.0,0.07779428]
[1729006874748,0.075928,66210.0,66209.0,0.07779428]
[1729006874942,0.0114,66210.0,66209.0,0.07879428]
[1729006875247,0.0124,66210.0,66209.0,0.07979428]
[1729006875444,0.011,66210.0,66209.0,0.07979428]
[1729006875840,0.011,66210.0,66209.0,0.20319428]
[1729006876042,0.011,66210.0,66209.0,0.57089363]
[1729006876440,0.011,66210.0,66209.0,0.44749363]
[1729006876642,0.086528,66210.0,66209.0,0.00426528]
[1729006877536,0.011,66210.0,66209.0,0.07979428]
[1729006877747,0.001,66210.0,66209.0,0.07879428]
[1729006877939,0.012,66210.0,66209.0,0.07979428]
[1729006878955,0.011,66210.0,66209.0,0.07879428]
[1729006879141,0.012,66210.0,66209.0,0.07979428]
[1729006879342,0.087528,66210.0,66209.0,0.00426528]
[1729006879545,0.087528,66210.0,66209.0,0.00326528]
[1729006879546,0.086528,66210.0,66209.0,0.00326528]
[1729006879747,0.087528,66210.0,66209.0,0.00426528]
[1729006881451,0.086528,66210.0,66209.0,0.00326528]
[1729006881653,0.086528,66210.0,66209.0,0.00426528]
[1729006881654,0.087528,66210.0,66209.0,0.00426528]
[1729006881843,0.075529,66209.0,66208.0,0.0004]
[1729006882148,0.075529,66209.0,66200.0,0.0004]
[1729006882149,0.075538,66201.0,66200.0,0.0004]
[1729006882346,0.3612,66209.0,66200.0,0.0004]
[1729006882549,0.075938,66201.0,66200.0,0.0004]
[1729006883353,0.076338,66201.0,66187.0,0.075553]
[1729006883548,0.075953,66188.0,66187.0,0.075553]
[1729006884251,0.075557,66185.0,66184.0,0.0004]
[1729006884753,0.075957,66185.0,66184.0,0.075958]
[1729006884947,0.0004,66185.0,66184.0,0.075958]
[1729006885142,0.0004,66185.0,66184.0,0.0004]
[1729006885143,0.08278426,66185.0,66184.0,0.0004]
[1729006885344,0.075957,66185.0,66184.0,0.0004]
[1729006885649,0.075567,66176.0,66170.0,0.0004]
[1729006885847,0.075967,66176.0,66170.0,0.0004]
[1729006886160,0.075573,66171.0,66170.0,0.0004]
[1729006886454,0.07559,66157.0,66154.0,1.575592]
[1729006886652,0.0004,66155.0,66154.0,1.575592]
[1729006888245,0.075991,66155.0,66154.0,1.575592]
[1729006888653,0.077991,66155.0,66154.0,1.501]
[1729006888853,0.085991,66155.0,66154.0,1.502]
[1729006889055,0.085991,66155.0,66154.0,1.577592]
[1729006889247,0.085991,66155.0,66154.0,0.002]
[1729006889755,0.088991,66155.0,66154.0,0.002]
[1729006890849,0.088991,66155.0,66154.0,0.001]
[1729006890850,0.086991,66155.0,66154.0,0.001]
[1729006891151,0.0134,66155.0,66142.0,0.0004]
[1729006891357,0.0004,66143.0,66142.0,0.0004]
[1729006891656,0.076005,66143.0,66142.0,0.076006]
[1729006892344,0.076005,66143.0,66142.0,0.0014]
[1729006892345,0.436805,66143.0,66142.0,0.0014]
[1729006892548,0.436805,66143.0,66129.0,0.07562]
[1729006892750,0.07601,66138.0,66129.0,0.07562]
[1729006892956,0.07601,66138.0,66131.0,0.075618]
[1729006893141,0.07601,66138.0,66126.0,0.36306846]
[1729006893452,0.0004,66138.0,66137.0,0.676011]
[1729006894348,0.0004,66138.0,66137.0,0.076011]
[1729006894850,0.0044,66138.0,66137.0,0.078011]
[1729006895047,0.08001,66138.0,66137.0,0.0024]
[1729006895246,0.08001,66138.0,66137.0,0.078011]
[1729006895647,0.0094,66138.0,66137.0,0.677011]
[1729006896158,0.0094,66138.0,66137.0,0.077011]
[1729006896349,0.0044,66138.0,66137.0,0.077011]
[1729006896551,0.0114,66138.0,66137.0,0.0024]
[1729006896768,0.08701,66138.0,66137.0,0.0024]
[1729006897754,0.0074,66138.0,66137.0,0.077011]
[1729006897957,0.0124,66138.0,66137.0,0.078011]
[1729006898549,0.0054,66138.0,66137.0,0.077011]
[1729006898751,0.0104,66138.0,66137.0,0.077011]
[1729006899553,0.08601,66138.0,66137.0,0.0014]
[1729006901649,0.08601,66138.0,66137.0,0.077011]
[1729006901650,0.0104,66138.0,66137.0,0.077011]
[1729006904450,0.0104,66138.0,66137.0,0.677011]
[1729006904856,0.0104,66138.0,66137.0,0.077011]
[1729006905358,0.0104,66138.0,66137.0,1.130611]
[1729006905559,0.1105,66154.0,66153.0,0.075593]
[1729006906157,0.1105,66154.0,66153.0,0.075993]
[1729006906950,0.1145,66154.0,66153.0,0.076993]
[1729006907951,0.200092,66154.0,66153.0,0.0024]
[1729006908159,0.196092,66154.0,66153.0,0.076993]
[1729006908463,0.200092,66154.0,66153.0,0.0024]
[1729006908665,0.075608,66141.0,66140.0,0.075608]
[1729006908857,0.075608,66140.0,66139.0,0.3608]
[1729006909055,0.0004,66140.0,66139.0,0.3608]
[1729006909259,0.0004,66140.0,66139.0,0.436409]
[1729006909961,0.076008,66140.0,66139.0,0.3608]
[1729006910172,0.07561,66138.0,66137.0,0.0004]
[1729006910457,0.07601,66138.0,66137.0,0.0004]
[1729006911246,0.075629,66122.0,66115.0,0.3608]
[1729006911451,0.3608,66128.0,66115.0,0.3608]
[1729006911657,0.0004,66116.0,66115.0,0.436437]
[1729006911966,0.3608,66128.0,66115.0,0.890197]
[1729006912257,0.3608,66128.0,66127.0,0.076023]
[1729006912652,0.001,66128.0,66127.0,0.076023]
[1729006913361,0.076622,66128.0,66127.0,0.076023]
[1729006913557,0.076622,66128.0,66127.0,0.0014]
[1729006913558,0.077622,66128.0,66127.0,0.0014]
[1729006914159,0.08470848,66128.0,66127.0,0.0014]
[1729006914358,0.00808648,66128.0,66127.0,0.077023]
[1729006915254,0.001,66128.0,66127.0,0.437823]
[1729006915454,0.0004,66136.0,66127.0,0.437823]
[1729006915455,0.0004,66136.0,66128.0,0.075622]